{"text_format":"1","workbook":"xlsx","n_sheets":3,"sheets":["申込書","記載例","データ"],"not_rendered":{"charts":0,"images":0,"macros":1,"external_links":0,"defined_names":4,"comments":0,"pivot_tables":0},"unopened":[],"bounds":{"document_bytes":16777216,"sheet_cells":100000,"rows_first":2000,"rows_last":500,"rows_between":2000,"halvings":0,"cell_chars":16384,"cell_head_chars":4096},"cells_cut":0,"cells_raw":0,"read":"whole","date_system":"1900"}

{"sheet":"申込書","index":0,"n_rows":63,"n_cols":16,"rows_kept":63,"cut":false,"hidden":false,"merged":[[20,7,20,8],[11,0,12,0],[11,1,11,2],[11,6,11,8],[12,1,12,2],[12,4,15,4],[13,0,14,1],[13,6,13,8],[14,6,14,8],[15,6,15,8],[16,7,16,8],[17,7,17,8],[18,7,18,8],[19,7,19,8],[18,0,19,3],[15,0,15,2],[0,0,0,8],[1,0,1,8],[2,0,2,1],[2,2,2,4],[2,6,2,8],[3,6,3,8],[6,0,10,2],[6,3,10,3],[6,6,6,8],[10,6,10,8],[3,0,3,1],[3,2,3,4],[4,0,5,2],[4,3,5,3],[4,6,4,8],[5,6,5,8]]}
["申　込　書"]
["大阪・関西万博開催2年前プロモーションにご協力いただける場合には、下記必要事項をご入力の上、（contact_pr_project@expo2025.or.jp）まで本申込書のご送付をお願いいたします。\n※キービジュアルの版権管理上、使用される際は必ずお申込みください。"]
["お申込社様",null,null,null,null,"担当者"]
["Emailアドレス",null,null,null,null,"紹介元"]
["協会からの依頼内容",null,null,"対応可否",null,"イベント名"]
[null,null,null,null,null,"主催者",null,null,null,null,null,null,null,null,false]
["①イベントの開催\n※対象期間：\n4/1（土）～5/7（日）",null,null,null,{"$f":"IF(O6=TRUE,\"➡\",\"\")","v":""},"イベント内容",null,null,null,null,null,null,null,null,false]
[null,null,null,null,null,"開催日",null,"開始時間",null,null,null,null,null,null,false]
[null,null,null,null,null,"終了日",null,"終了時間",null,null,null,null,null,null,false]
[null,null,null,null,null,"場所",null,"住所",null,null,null,null,null,null,false]
[null,null,null,null,null,"ＵＲＬ",null,null,null,null,null,null,null,null,false]
["②KV","サイネージビジュアル\n（静止画）\n※3月中旬にDL可",null,null,null,"掲出希望期間\n3/13～5/13",{"$f":"IF(O7=TRUE,\"皆様がお持ちのメディアもしくは掲出可能な場所（デジタルサイネージ、街頭ビジョン、看板等）へご掲出をお願いいたします。KV・動画は使用ガイドに従ってご掲出ください。\",IF(O9=TRUE,\"皆様がお持ちのメディアもしくは掲出可能な場所（デジタルサイネージ、街頭ビジョン、看板等）へご掲出をお願いいたします。KV・動画は使用ガイドに従ってご掲出ください\",\"\"))","v":""}]
[null,"SNSビジュアル",null,null,{"$f":"IF($O$8=TRUE,\"➘\",\"\")","v":""},"掲出開始日",null,"掲出終了日"]
["③サイネージ\nビジュアル\n（動画）\n※4月上旬にＤＬ可予定",null,"掲出",null,null,"掲出場所"]
[null,null,"SNS投稿",null,null,"掲出媒体"]
["④記者会見の実施予定",null,null,null,null,"投稿日\n4/13(木)中",{"$f":"IF(O8=TRUE,\"KV・動画を使用し、統一のハッシュタグ（別途ご案内）、公式アカウントへのタグ付けをいただき、皆様のメッセージと共にご投稿お願いいたします。 \",IF(O10=TRUE,\"KV・動画を使用し、統一のハッシュタグ（別途ご案内）、公式アカウントへのタグ付けをいただき、皆様のメッセージと共にご投稿お願いいたします。 \",\"\"))","v":""}]
[null,null,null,null,null,"投稿媒体","アカウント名","URL"]
[null,null,null,null,null,"Twitter"]
["入力項目に不足やお間違いがないか\nご確認の上ご送付ください。",null,null,null,null,"Facebook"]
[null,null,null,null,null,"Instagram"]
[null,null,null,null,null,"その他"]
["◆問合せ先"]
["公益社団法人2025年日本国際博覧会協会　機運醸成局 企画部 共創推進課　　担当：高坂・塩野・有賀・水流"]
["電話番号：06-6625-8725　　メールアドレス：contact_pr_project@expo2025.or.jp　"]
[]
[]
[null,null,null,null,null,null,null,null,null,null,null,null,null,null,null,"2023-04-01"]
[null,null,null,null,null,null,null,null,null,null,null,null,null,null,null,"2023-04-02"]
[null,null,null,null,null,null,null,null,null,null,null,null,null,null,null,"2023-04-03"]
[null,null,null,null,null,null,null,null,null,null,null,null,null,null,null,"2023-04-04"]
[null,null,null,null,null,null,null,null,null,null,null,null,null,null,null,"2023-04-05"]
[null,null,null,null,null,null,null,null,null,null,null,null,null,null,null,"2023-04-06"]
[null,null,null,null,null,null,null,null,null,null,null,null,null,null,null,"2023-04-07"]
[null,null,null,null,null,null,null,null,null,null,null,null,null,null,null,"2023-04-08"]
[null,null,null,null,null,null,null,null,null,null,null,null,null,null,null,"2023-04-09"]
[null,null,null,null,null,null,null,null,null,null,null,null,null,null,null,"2023-04-10"]
[null,null,null,null,null,null,null,null,null,null,null,null,null,null,null,"2023-04-11"]
[null,null,null,null,null,null,null,null,null,null,null,null,null,null,null,"2023-04-12"]
[null,null,null,null,null,null,null,null,null,null,null,null,null,null,null,"2023-04-13"]
[null,null,null,null,null,null,null,null,null,null,null,null,null,null,null,"2023-04-14"]
[null,null,null,null,null,null,null,null,null,null,null,null,null,null,null,"2023-04-15"]
[null,null,null,null,null,null,null,null,null,null,null,null,null,null,null,"2023-04-16"]
[null,null,null,null,null,null,null,null,null,null,null,null,null,null,null,"2023-04-17"]
[null,null,null,null,null,null,null,null,null,null,null,null,null,null,null,"2023-04-18"]
[null,null,null,null,null,null,null,null,null,null,null,null,null,null,null,"2023-04-19"]
[null,null,null,null,null,null,null,null,null,null,null,null,null,null,null,"2023-04-20"]
[null,null,null,null,null,null,null,null,null,null,null,null,null,null,null,"2023-04-21"]
[null,null,null,null,null,null,null,null,null,null,null,null,null,null,null,"2023-04-22"]
[null,null,null,null,null,null,null,null,null,null,null,null,null,null,null,"2023-04-23"]
[null,null,null,null,null,null,null,null,null,null,null,null,null,null,null,"2023-04-24"]
[null,null,null,null,null,null,null,null,null,null,null,null,null,null,null,"2023-04-25"]
[null,null,null,null,null,null,null,null,null,null,null,null,null,null,null,"2023-04-26"]
[null,null,null,null,null,null,null,null,null,null,null,null,null,null,null,"2023-04-27"]
[null,null,null,null,null,null,null,null,null,null,null,null,null,null,null,"2023-04-28"]
[null,null,null,null,null,null,null,null,null,null,null,null,null,null,null,"2023-04-29"]
[null,null,null,null,null,null,null,null,null,null,null,null,null,null,null,"2023-04-30"]
[null,null,null,null,null,null,null,null,null,null,null,null,null,null,null,"2023-05-01"]
[null,null,null,null,null,null,null,null,null,null,null,null,null,null,null,"2023-05-02"]
[null,null,null,null,null,null,null,null,null,null,null,null,null,null,null,"2023-05-03"]
[null,null,null,null,null,null,null,null,null,null,null,null,null,null,null,"2023-05-04"]
[null,null,null,null,null,null,null,null,null,null,null,null,null,null,null,"2023-05-05"]
[null,null,null,null,null,null,null,null,null,null,null,null,null,null,null,"2023-05-06"]
[null,null,null,null,null,null,null,null,null,null,null,null,null,null,null,"2023-05-07"]

{"sheet":"記載例","index":1,"n_rows":63,"n_cols":41,"rows_kept":63,"cut":false,"hidden":false,"merged":[[19,7,19,8],[4,14,4,19],[5,6,5,8],[20,7,20,8],[11,0,12,0],[11,1,11,2],[11,6,11,8],[12,1,12,2],[12,4,15,4],[13,0,14,1],[13,6,13,8],[14,6,14,8],[15,6,15,8],[16,7,16,8],[18,0,19,3],[17,7,17,8],[18,7,18,8],[6,0,10,2],[6,3,10,3],[6,6,6,8],[10,6,10,8],[15,0,15,2],[0,0,0,8],[1,0,1,8],[2,0,2,1],[2,2,2,4],[2,6,2,8],[3,0,3,1],[3,2,3,4],[4,0,5,2],[4,3,5,3],[4,6,4,8],[3,6,3,8]]}
["申　込　書"]
["大阪・関西万博開催2年前プロモーションにご協力いただける場合には、下記必要事項をご入力の上、（contact_pr_project@expo2025.or.jp）まで本申込書のご送付をお願いいたします。\n※キービジュアルの版権管理上、使用される際は必ず申請をお願いいたします。"]
["お申込社様",null,"○○○○会社",null,null,"担当者","窓口担当者をご記載ください。\n（複数記入の場合は「・」で区切ってください。）"]
["連絡先",null,"担当者のご連絡を記載してください。\n※複数の場合は「;」で区切ってください。）",null,null,"紹介元","○○○○グループ"]
["協会からの依頼内容",null,null,"対応可否",null,"イベント名","イベント名をご記載ください。",null,null,null,null,null,null,null,"管理用データ",null,null,null,null,null,null,null,null,null,null,null,null,null,null,null,null,null,null,"投稿媒体"]
[null,null,null,null,null,"主催者","○○○○会社",null,null,null,null,null,null,null,true,"お申込社様","担当者","連絡先","協会窓口（担当課）","イベント名","主催者","イベント内容","開催日","終了日","開始時間","終了時間","場所","住所","ＵＲＬ","掲出開始日","掲出終了日","掲出場所","掲出媒体","Twitter",null,"Facebook",null,"instagram",null,"その他"]
["①イベントの開催\n※対象期間：\n4/1（土）～5/7（日）",null,null,null,{"$f":"IF(O6=TRUE,\"➡\",\"\")","v":"➡"},"イベント内容","イベント内容をご記載ください。\n・万博開催に向けた機運醸成に関わるイベント\n・テーマ「いのち輝く未来社会のデザイン」を\n　感じられるイベント\n・コンセプト「未来社会の実験場」を感じられる\n　イベント",null,null,null,null,null,null,null,true,{"$f":"C3","v":"○○○○会社"},{"$f":"C4","v":"担当者のご連絡を記載してください。\n※複数の場合は「;」で区切ってください。）"},{"$f":"#REF!","v":{"$error":"#REF!"}},{"$f":"G4","v":"○○○○グループ"},{"$f":"G5","v":"イベント名をご記載ください。"},{"$f":"G6","v":"○○○○会社"},{"$f":"G7","v":"イベント内容をご記載ください。\n・万博開催に向けた機運醸成に関わるイベント\n・テーマ「いのち輝く未来社会のデザイン」を\n　感じられるイベント\n・コンセプト「未来社会の実験場」を感じられる\n　イベント"},{"$f":"G8","v":"2023-05-02"},{"$f":"G9","v":"2023-05-03"},{"$f":"I8","v":"13:00:00"},{"$f":"I9","v":"17:00:00"},{"$f":"G10","v":"○○○○ホール\n○○公園　等"},{"$f":"I10","v":"大阪府大阪市○○○○○○○○"},{"$f":"G11","v":"ｗｗｗ○○○○○○○○"},{"$f":"G13","v":"2023-05-13"},{"$f":"I13","v":"2023-05-14"},{"$f":"G14","v":"大阪市○○○○○○○○"},{"$f":"G15","v":"デジタルサイネージ、街頭ビジョン、看板等をご記入ください。"},{"$f":"G18","v":"○○○○"},{"$f":"H18","v":"ｗｗｗ○○○○○○○○"},{"$f":"G19","v":"○○○○"},{"$f":"H19","v":"ｗｗｗ○○○○○○○○"},{"$f":"G20","v":"○○○○"},{"$f":"H20","v":"ｗｗｗ○○○○○○○○"},{"$f":"G21","v":"○○○○"},{"$f":"H21","v":"ｗｗｗ○○○○○○○○"}]
[null,null,null,null,null,"開催日","2023-05-02","開始時間","13:00:00",null,null,null,null,null,true]
[null,null,null,null,null,"終了日","2023-05-03","終了時間","17:00:00",null,null,null,null,null,true]
[null,null,null,null,null,"場所","○○○○ホール\n○○公園　等","住所","大阪府大阪市○○○○○○○○",null,null,null,null,null,true]
[null,null,null,null,null,"ＵＲＬ","ｗｗｗ○○○○○○○○",null,null,null,null,null,null,null,true]
["②KV","サイネージビジュアル\n（静止画）\n※3月中旬にDL可",null,null,null,"掲出希望期間\n3/13～5/13",{"$f":"IF(O7=TRUE,\"皆様がお持ちのメディアもしくは掲出可能な場所（デジタルサイネージ、街頭ビジョン、看板等）へご掲出をお願いいたします。KV・動画は使用ガイドに従ってご掲出ください。\",IF(O9=TRUE,\"皆様がお持ちのメディアもしくは掲出可能な場所（デジタルサイネージ、街頭ビジョン、看板等）へご掲出をお願いいたします。KV・動画は使用ガイドに従ってご掲出ください\",\"\"))","v":"皆様がお持ちのメディアもしくは掲出可能な場所（デジタルサイネージ、街頭ビジョン、看板等）へご掲出をお願いいたします。KV・動画は使用ガイドに従ってご掲出ください。"},null,null,null,null,null,null,null,"総務局 総務部 法務課"]
[null,"SNSビジュアル",null,null,{"$f":"IF($O$8=TRUE,\"➘\",\"\")","v":"➘"},"掲出開始日","2023-05-13","掲出終了日","2023-05-14",null,null,null,null,null,"経営企画室　"]
["③サイネージ\nビジュアル\n（動画）\n※4月上旬にＤＬ可予定",null,"掲出",null,null,"掲出場所","大阪市○○○○○○○○",null,null,null,null,null,null,null,"企画局 企画部 企画課"]
[null,null,"SNS投稿",null,null,"掲出媒体","デジタルサイネージ、街頭ビジョン、看板等をご記入ください。",null,null,null,null,null,null,null,"企画局 企画部 出展課　"]
["④記者会見の実施予定",null,null,null,null,"投稿日\n4/13(木)中",{"$f":"IF(O8=TRUE,\"KV・動画を使用し、統一のハッシュタグ（別途ご案内）、公式アカウントへのタグ付けをいただき、皆様のメッセージと共にご投稿お願いいたします。 \",IF(O10=TRUE,\"KV・動画を使用し、統一のハッシュタグ（別途ご案内）、公式アカウントへのタグ付けをいただき、皆様のメッセージと共にご投稿お願いいたします。 \",\"\"))","v":"KV・動画を使用し、統一のハッシュタグ（別途ご案内）、公式アカウントへのタグ付けをいただき、皆様のメッセージと共にご投稿お願いいたします。 "},null,null,null,null,null,null,null,"企画局 企画部 テーマ事業課　"]
[null,null,null,null,null,"投稿媒体","アカウント名","URL",null,null,null,null,null,null,"企画局 企画部 催事課"]
[null,null,null,null,null,"Twitter","○○○○","ｗｗｗ○○○○○○○○",null,null,null,null,null,null,"機運醸成局 企画部 企画・推進課"]
["入力項目に不足やお間違いがないか\nご確認の上ご送付ください。",null,null,null,null,"Facebook","○○○○","ｗｗｗ○○○○○○○○",null,null,null,null,null,null,"機運醸成局 企画部 共創推進課　"]
[null,null,null,null,null,"Instagram","○○○○","ｗｗｗ○○○○○○○○",null,null,null,null,null,null,"機運醸成局 地域・観光部 地域連携課　"]
[null,null,null,null,null,"その他","○○○○","ｗｗｗ○○○○○○○○",null,null,null,null,null,null,"政府、各省庁"]
["◆問合せ先"]
["公益社団法人2025年日本国際博覧会協会　機運醸成局 企画部 共創推進課　　担当：高坂・塩野・有賀・水流"]
["電話番号：06-6625-8725　　メールアドレス：contact_pr_project@expo2025.or.jp　"]
[]
[]
[null,null,null,null,null,null,null,null,null,null,null,null,null,null,null,"2023-04-01"]
[null,null,null,null,null,null,null,null,null,null,null,null,null,null,null,"2023-04-02"]
[null,null,null,null,null,null,null,null,null,null,null,null,null,null,null,"2023-04-03"]
[null,null,null,null,null,null,null,null,null,null,null,null,null,null,null,"2023-04-04"]
[null,null,null,null,null,null,null,null,null,null,null,null,null,null,null,"2023-04-05"]
[null,null,null,null,null,null,null,null,null,null,null,null,null,null,null,"2023-04-06"]
[null,null,null,null,null,null,null,null,null,null,null,null,null,null,null,"2023-04-07"]
[null,null,null,null,null,null,null,null,null,null,null,null,null,null,null,"2023-04-08"]
[null,null,null,null,null,null,null,null,null,null,null,null,null,null,null,"2023-04-09"]
[null,null,null,null,null,null,null,null,null,null,null,null,null,null,null,"2023-04-10"]
[null,null,null,null,null,null,null,null,null,null,null,null,null,null,null,"2023-04-11"]
[null,null,null,null,null,null,null,null,null,null,null,null,null,null,null,"2023-04-12"]
[null,null,null,null,null,null,null,null,null,null,null,null,null,null,null,"2023-04-13"]
[null,null,null,null,null,null,null,null,null,null,null,null,null,null,null,"2023-04-14"]
[null,null,null,null,null,null,null,null,null,null,null,null,null,null,null,"2023-04-15"]
[null,null,null,null,null,null,null,null,null,null,null,null,null,null,null,"2023-04-16"]
[null,null,null,null,null,null,null,null,null,null,null,null,null,null,null,"2023-04-17"]
[null,null,null,null,null,null,null,null,null,null,null,null,null,null,null,"2023-04-18"]
[null,null,null,null,null,null,null,null,null,null,null,null,null,null,null,"2023-04-19"]
[null,null,null,null,null,null,null,null,null,null,null,null,null,null,null,"2023-04-20"]
[null,null,null,null,null,null,null,null,null,null,null,null,null,null,null,"2023-04-21"]
[null,null,null,null,null,null,null,null,null,null,null,null,null,null,null,"2023-04-22"]
[null,null,null,null,null,null,null,null,null,null,null,null,null,null,null,"2023-04-23"]
[null,null,null,null,null,null,null,null,null,null,null,null,null,null,null,"2023-04-24"]
[null,null,null,null,null,null,null,null,null,null,null,null,null,null,null,"2023-04-25"]
[null,null,null,null,null,null,null,null,null,null,null,null,null,null,null,"2023-04-26"]
[null,null,null,null,null,null,null,null,null,null,null,null,null,null,null,"2023-04-27"]
[null,null,null,null,null,null,null,null,null,null,null,null,null,null,null,"2023-04-28"]
[null,null,null,null,null,null,null,null,null,null,null,null,null,null,null,"2023-04-29"]
[null,null,null,null,null,null,null,null,null,null,null,null,null,null,null,"2023-04-30"]
[null,null,null,null,null,null,null,null,null,null,null,null,null,null,null,"2023-05-01"]
[null,null,null,null,null,null,null,null,null,null,null,null,null,null,null,"2023-05-02"]
[null,null,null,null,null,null,null,null,null,null,null,null,null,null,null,"2023-05-03"]
[null,null,null,null,null,null,null,null,null,null,null,null,null,null,null,"2023-05-04"]
[null,null,null,null,null,null,null,null,null,null,null,null,null,null,null,"2023-05-05"]
[null,null,null,null,null,null,null,null,null,null,null,null,null,null,null,"2023-05-06"]
[null,null,null,null,null,null,null,null,null,null,null,null,null,null,null,"2023-05-07"]

{"sheet":"データ","index":2,"n_rows":3,"n_cols":28,"rows_kept":3,"cut":false,"hidden":true,"merged":[]}
["管理用データ",null,null,null,null,null,null,null,null,null,null,null,null,null,null,null,null,null,null,"投稿媒体"]
["協会担当","お申込社様","担当者","連絡先","紹介元","イベント名","主催者","イベント内容","開催日","終了日","開始時間","終了時間","場所","住所","ＵＲＬ","掲出開始日","掲出終了日","掲出場所","掲出媒体","Twitter",null,"Facebook",null,"instagram",null,"その他","会見有無"]
["機運醸成局 地域・観光部 地域連携課　",{"$f":"申込書!C3","v":0},{"$f":"申込書!C4","v":0},{"$f":"申込書!G4","v":0},{"$f":"申込書!H4","v":0},{"$f":"申込書!G5","v":0},{"$f":"申込書!G6","v":0},{"$f":"申込書!G7","v":0},{"$f":"申込書!G8","v":"00:00:00"},{"$f":"申込書!G9","v":"00:00:00"},{"$f":"申込書!I8","v":"00:00:00"},{"$f":"申込書!I9","v":"00:00:00"},{"$f":"申込書!G10","v":"00:00:00"},{"$f":"申込書!I10","v":"00:00:00"},{"$f":"申込書!G11","v":"00:00:00"},{"$f":"申込書!G13","v":"00:00:00"},{"$f":"申込書!I13","v":"00:00:00"},{"$f":"申込書!G14","v":0},{"$f":"申込書!G15","v":0},{"$f":"申込書!G18","v":0},{"$f":"申込書!H18","v":0},{"$f":"申込書!G19","v":0},{"$f":"申込書!H19","v":0},{"$f":"申込書!G20","v":0},{"$f":"申込書!H20","v":0},{"$f":"申込書!G21","v":0},{"$f":"IF(申込書!O11=FALSE,\"無\",IF(申込書!O11=TRUE,\"有\",\"\"))","v":"無"},{"$f":"申込書!H21","v":0}]